fUST/lending_fUST_20250531
["ID","MTS","AMOUNT","RATE_DAILY","PERIOD"]
[363356985,1748692246782,-430.0,0.00017808,2]
[363356986,1748692246791,-430.0,0.00017808,2]
[363356987,1748692246800,-1692.57,0.00017808,2]
[363356988,1748692246809,-430.0,0.00017808,2]
[363356989,1748692246818,-430.0,0.00017808,2]
[363356990,1748692246827,-3129.24,0.00017808,2]
[363356991,1748692246836,-1575.39,0.00017808,2]
[363356992,1748692246845,-430.0,0.00017808,2]
[363356993,1748692246854,-430.0,0.00017808,2]
[363356994,1748692246863,-430.0,0.00017808,2]
[363356995,1748692246872,-471.27,0.00017808,2]
[363356996,1748692246881,-724.26,0.00017808,2]
[363356997,1748692246890,-614.59,0.00017808,2]
[363356998,1748692246898,-748.23,0.00017808,2]
[363356999,1748692246908,-430.0,0.00017808,2]
[363357000,1748692246917,-835.01,0.00017808,2]
[363357001,1748692246926,-698.08,0.00017808,2]
[363357002,1748692246936,-430.0,0.00017808,2]
[363357003,1748692246945,-450.0,0.00017808,2]
[363357004,1748692246955,-430.0,0.00017808,2]
[363357005,1748692246963,-633.51,0.00017808,2]
[363357006,1748692246972,-430.0,0.00017808,2]
[363357007,1748692246981,-430.0,0.00017808,2]
[363357008,1748692246990,-430.0,0.00017808,2]
[363357009,1748692246999,-430.0,0.00017808,2]
[363357010,1748692247008,-430.0,0.00017808,2]
[363357011,1748692247017,-430.0,0.00017808,2]
[363357012,1748692247026,-430.0,0.00017808,2]
[363357013,1748692247035,-430.0,0.00017808,2]
[363357014,1748692247047,-430.0,0.00017808,2]
[363357015,1748692247056,-430.0,0.00017808,2]
[363357016,1748692247065,-430.0,0.00017808,2]
[363357017,1748692247074,-430.0,0.00017808,2]
[363357018,1748692247083,-430.0,0.00017808,2]
[363357019,1748692247092,-153.06337876,0.00017808,2]
[363357020,1748692247101,-430.0,0.00017808,2]
[363357021,1748692247110,-470.0,0.00017808,2]
[363357022,1748692247120,-430.0,0.00017808,2]
[363357023,1748692247129,-430.0,0.00017808,2]
[363357024,1748692247138,-734.66,0.00017808,2]
[363357025,1748692247147,-430.0,0.00017808,2]
[363357026,1748692247157,-191.65472452,0.00017808,2]
[363357027,1748692247166,-542.86,0.00017808,2]
[363357028,1748692247182,-430.0,0.00017808,2]
[363357029,1748692247195,-702.37,0.00017808,2]
[363357030,1748692247206,-430.0,0.00017808,2]
[363357031,1748692247216,-430.0,0.00017808,2]
[363357032,1748692247225,-4229.34,0.00017808,2]
[363357033,1748692247234,-430.0,0.00017808,2]
[363357034,1748692247243,-430.0,0.00017808,2]
[363357035,1748692247253,-430.0,0.00017808,2]
[363357036,1748692247262,-449.81,0.00017808,2]
[363357037,1748692247277,-774.95,0.00017808,2]
[363357038,1748692247293,-510.0,0.00017808,2]
[363357039,1748692247302,-156.53171264,0.00017816,2]
[363357040,1748692247311,-500.0,0.00017816,2]
[363357041,1748692247320,-500.0,0.00017816,2]
[363357042,1748692247329,-500.0,0.00017816,2]
[363357043,1748692247338,-500.0,0.00017816,2]
[363357044,1748692247348,-500.0,0.00017816,2]
[363357045,1748692247357,-270.127645,0.00017816,2]
[363357046,1748692247367,-500.0,0.00017844,2]
[363357047,1748692247380,-500.0,0.00017844,2]
[363357048,1748692247389,-500.0,0.00017844,2]
[363357049,1748692247399,-500.0,0.00017844,2]
[363357050,1748692247410,-500.0,0.00017844,2]
[363357051,1748692247421,-500.0,0.00017871,2]
[363357052,1748692247430,-500.0,0.00017871,2]
[363357053,1748692247441,-500.0,0.00017871,2]
[363357054,1748692247450,-500.0,0.00017871,2]
[363357055,1748692247460,-269.0,0.00017871,2]
[363357056,1748692247470,-500.0,0.00017899,2]
[363357057,1748692247479,-500.0,0.00017899,2]
[363357058,1748692247488,-500.0,0.00017899,2]
[363357059,1748692247498,-500.0,0.00017899,2]
[363357060,1748692247507,-500.0,0.00017926,2]
[363357061,1748692247517,-500.0,0.00017926,2]
[363357062,1748692247527,-500.0,0.00017926,2]
[363357063,1748692247537,-500.0,0.00017926,2]
[363357064,1748692247547,-500.0,0.00017953,2]
[363357065,1748692247556,-500.0,0.00017953,2]
[363357066,1748692247567,-500.0,0.00017953,2]
[363357067,1748692247576,-500.0,0.00017953,2]
[363357068,1748692247586,-407.0,0.00017962,2]
[363357069,1748692247596,-1200.0,0.00017968,2]
[363357070,1748692247605,-500.0,0.00017981,2]
[363357071,1748692247615,-500.0,0.00017981,2]
[363357072,1748692247625,-500.0,0.00017981,2]
[363357073,1748692247634,-500.0,0.00017981,2]
[363357074,1748692247644,-375.392499,0.00018,30]
[363357075,1748692247653,-4578.61881295,0.00018003,2]
[363357076,1748692247663,-500.0,0.00018008,2]
[363357077,1748692247672,-500.0,0.00018008,2]
[363357078,1748692247682,-500.0,0.00018008,2]
[363357079,1748692247692,-500.0,0.00018008,2]
[363357080,1748692247702,-500.0,0.00018036,2]
[363357081,1748692247711,-500.0,0.00018036,2]
[363357082,1748692247722,-500.0,0.00018036,2]
[363357083,1748692247731,-500.0,0.00018036,2]
[363357084,1748692247741,-500.0,0.00018063,2]
[363357085,1748692247750,-537.51363845,0.00018063,2]
[363357086,1748692247760,-500.0,0.00018063,2]
[363357087,1748692247769,-430.0,0.00018082,2]
[363357088,1748692247778,-430.0,0.00018082,2]
[363357089,1748692247788,-430.0,0.00018082,2]
[363357090,1748692247798,-593.18,0.00018082,2]
[363357091,1748692247808,-430.0,0.00018082,2]
[363357092,1748692247817,-430.0,0.00018082,2]
[363357093,1748692247828,-430.0,0.00018082,2]
[363357094,1748692247837,-668.47,0.00018082,2]
[363357095,1748692247847,-430.0,0.00018082,2]
[363357096,1748692247857,-430.0,0.00018082,2]
[363357097,1748692247866,-430.0,0.00018082,2]
[363357098,1748692247875,-1813.53,0.00018082,2]
[363357099,1748692247885,-430.0,0.00018082,2]
[363357100,1748692247894,-430.0,0.00018082,2]
[363357101,1748692247904,-576.77,0.00018082,2]
[363357102,1748692247913,-430.0,0.00018082,2]
[363357103,1748692247924,-3524.6,0.00018082,2]
[363357104,1748692247934,-430.0,0.00018082,2]
[363357105,1748692247944,-430.0,0.00018082,2]
[363357106,1748692247954,-430.0,0.00018082,2]
[363357107,1748692247963,-430.0,0.00018082,2]
[363357108,1748692247973,-430.0,0.00018082,2]
[363357109,1748692247983,-1169.56,0.00018082,2]
[363357110,1748692247993,-3627.56,0.00018082,2]
[363357111,1748692248002,-2512.61,0.00018082,2]
[363357112,1748692248012,-430.0,0.00018082,2]
[363357113,1748692248022,-2938.95,0.00018082,2]
[363357114,1748692248033,-430.0,0.00018082,2]
[363357115,1748692248042,-586.28,0.00018082,2]
[363357116,1748692248051,-499.32,0.00018082,2]
[363357117,1748692248061,-430.0,0.00018082,2]
[363357118,1748692248071,-1692.57,0.00018082,2]
[363357119,1748692248080,-430.0,0.00018082,2]
[363357120,1748692248089,-430.0,0.00018082,2]
[363357121,1748692248099,-3129.24,0.00018082,2]
[363357122,1748692248108,-1575.39,0.00018082,2]
[363357123,1748692248118,-430.0,0.00018082,2]
[363357124,1748692248127,-430.0,0.00018082,2]
[363357125,1748692248137,-471.27,0.00018082,2]
[363357126,1748692248147,-724.26,0.00018082,2]
[363357127,1748692248157,-614.59,0.00018082,2]
[363357128,1748692248167,-748.23,0.00018082,2]
[363357129,1748692248177,-430.0,0.00018082,2]
[363357130,1748692248187,-835.01,0.00018082,2]
[363357131,1748692248197,-698.08,0.00018082,2]
[363357132,1748692248208,-430.0,0.00018082,2]
[363357133,1748692248218,-430.0,0.00018082,2]
[363357134,1748692248227,-633.51,0.00018082,2]
[363357135,1748692248238,-430.0,0.00018082,2]
[363357136,1748692248247,-190.12001961,0.00018082,2]
[363357137,1748692248257,-430.0,0.00018082,2]
[363357138,1748692248267,-430.0,0.00018082,2]
[363357139,1748692248277,-430.0,0.00018082,2]
[363357140,1748692248287,-430.0,0.00018082,2]
[363357141,1748692248297,-430.0,0.00018082,2]
[363357142,1748692248306,-430.0,0.00018082,2]
[363357143,1748692248316,-430.0,0.00018082,2]
[363357144,1748692248326,-430.0,0.00018082,2]
[363357145,1748692248335,-430.0,0.00018082,2]
[363357146,1748692248345,-430.0,0.00018082,2]
[363357147,1748692248356,-430.0,0.00018082,2]
[363357148,1748692248366,-430.0,0.00018082,2]
[363357149,1748692248379,-734.66,0.00018082,2]
[363357150,1748692248389,-430.0,0.00018082,2]
[363357151,1748692248398,-542.86,0.00018082,2]
[363357152,1748692248408,-430.0,0.00018082,2]
[363357153,1748692248419,-702.37,0.00018082,2]
[363357154,1748692248429,-430.0,0.00018082,2]
[363357155,1748692248439,-430.0,0.00018082,2]
[363357156,1748692248449,-4229.34,0.00018082,2]
[363357157,1748692248459,-430.0,0.00018082,2]
[363357158,1748692248469,-430.0,0.00018082,2]
[363357159,1748692248478,-449.81,0.00018082,2]
[363357160,1748692248489,-774.95,0.00018082,2]
[363357161,1748692248498,-500.0,0.0001809,2]
[363357162,1748692248508,-500.0,0.0001809,2]
[363357163,1748692248518,-151.0,0.000181,2]
[363357164,1748692248528,-380.27793115,0.00018118,2]
[363357165,1748692248537,-500.0,0.00018118,2]
[363357166,1748692248547,-500.0,0.00018145,2]
[363357167,1748692248557,-1133.58366229,0.00018169,2]
[363357168,1748692248567,-422.47185108,0.00018173,2]
[363357169,1748692248577,-151.0,0.000182,2]
[363357170,1748692248586,-500.0,0.00018234,2]
[363357171,1748692248596,-1500.0,0.00018269,2]
[363357172,1748692248605,-918.56086243,0.00018269,2]
[363357173,1748692248615,-1005.52707264,0.00018279,2]
[363357174,1748692248625,-4578.61881295,0.00018279,2]
[363357175,1748692248635,-430.0,0.00018356,2]
[363357176,1748692248645,-430.0,0.00018356,2]
[363357177,1748692248655,-150.93453295,0.00018356,2]
[363357178,1748692248665,-593.18,0.00018356,2]
[363357179,1748692248674,-430.0,0.00018356,2]
[363357180,1748692248683,-430.0,0.00018356,2]
[363357181,1748692248693,-430.0,0.00018356,2]
[363357182,1748692248704,-668.47,0.00018356,2]
[363357183,1748692248714,-430.0,0.00018356,2]
[363357184,1748692248725,-430.0,0.00018356,2]
[363357185,1748692248735,-430.0,0.00018356,2]
[363357186,1748692248849,-1813.53,0.00018356,2]
[363357187,1748692248859,-430.0,0.00018356,2]
[363357188,1748692248870,-430.0,0.00018356,2]
[363357189,1748692248880,-576.77,0.00018356,2]
[363357190,1748692248890,-430.0,0.00018356,2]
[363357191,1748692248899,-3524.6,0.00018356,2]
[363357192,1748692248909,-430.0,0.00018356,2]
[363357193,1748692248919,-430.0,0.00018356,2]
[363357194,1748692248928,-430.0,0.00018356,2]
[363357195,1748692248938,-430.0,0.00018356,2]
[363357196,1748692248948,-430.0,0.00018356,2]
[363357197,1748692248958,-1169.56,0.00018356,2]
[363357198,1748692248968,-3627.56,0.00018356,2]
[363357199,1748692248977,-2512.61,0.00018356,2]
[363357200,1748692248987,-430.0,0.00018356,2]
[363357201,1748692248997,-2938.95,0.00018356,2]
[363357202,1748692249007,-430.0,0.00018356,2]
[363357203,1748692249016,-586.28,0.00018356,2]
[363357204,1748692249026,-499.32,0.00018356,2]
[363357205,1748692249036,-430.0,0.00018356,2]
[363357206,1748692249045,-1692.57,0.00018356,2]
[363357207,1748692249055,-430.0,0.00018356,2]
[363357208,1748692249065,-3129.24,0.00018356,2]
[363357209,1748692249075,-1575.39,0.00018356,2]
[363357210,1748692249085,-516.12927608,0.00018356,2]
[363357211,1748692249095,-430.0,0.00018356,2]
[363357212,1748692249105,-471.27,0.00018356,2]
[363357213,1748692249114,-724.26,0.00018356,2]
[363357214,1748692249124,-614.59,0.00018356,2]
[363357215,1748692249134,-748.23,0.00018356,2]
[363357216,1748692249144,-430.0,0.00018356,2]
[363357217,1748692249154,-835.01,0.00018356,2]
[363357218,1748692249164,-698.08,0.00018356,2]
[363357219,1748692249173,-430.0,0.00018356,2]
[363357220,1748692249183,-430.0,0.00018356,2]
[363357221,1748692249193,-633.51,0.00018356,2]
[363357222,1748692249202,-430.0,0.00018356,2]
[363357223,1748692249212,-430.0,0.00018356,2]
[363357224,1748692249222,-430.0,0.00018356,2]
[363357225,1748692249231,-430.0,0.00018356,2]
[363357226,1748692249241,-430.0,0.00018356,2]
[363357227,1748692249251,-430.0,0.00018356,2]
[363357228,1748692249261,-430.0,0.00018356,2]
[363357229,1748692249270,-430.0,0.00018356,2]
[363357230,1748692249280,-430.0,0.00018356,2]
[363357231,1748692249290,-539.44891595,0.00018356,2]
[363357232,1748692249300,-430.0,0.00018356,2]
[363357233,1748692249309,-430.0,0.00018356,2]
[363357234,1748692249320,-734.66,0.00018356,2]
[363357235,1748692249330,-430.0,0.00018356,2]
[363357236,1748692249339,-542.86,0.00018356,2]
[363357237,1748692249350,-430.0,0.00018356,2]
[363357238,1748692249359,-702.37,0.00018356,2]
[363357239,1748692249372,-430.0,0.00018356,2]
[363357240,1748692249381,-430.0,0.00018356,2]
[363357241,1748692249392,-4229.34,0.00018356,2]
[363357242,1748692249401,-430.0,0.00018356,2]
[363357243,1748692249413,-430.0,0.00018356,2]
[363357244,1748692249422,-449.81,0.00018356,2]
[363357245,1748692249432,-774.95,0.00018356,2]
[363357246,1748692249441,-814.212827,0.00018399,2]
[363357247,1748692249452,-362.332697,0.00018399,2]
[363357248,1748692249462,-362.332697,0.00018399,2]
[363357249,1748692249471,-151.0,0.00018399,2]
[363357250,1748692249481,-475.777429,0.00018399,2]
[363357251,1748692249491,-475.777429,0.00018399,2]
[363357252,1748692249501,-1723.783253,0.00018399,2]
[363357253,1748692249510,-1723.783253,0.00018399,2]
[363357254,1748692249521,-151.0,0.000184,2]
[363357255,1748692249530,-151.0,0.000184,2]
[363357256,1748692249540,-160.0,0.00018466,2]
[363357257,1748692249550,-160.0,0.00018468,2]
[363357258,1748692249560,-160.0,0.00018468,2]
[363357259,1748692249569,-160.0,0.00018468,2]
[363357260,1748692249578,-423.4608169,0.00018468,2]
[363357261,1748692249587,-160.0,0.00018468,2]
[363357262,1748692249597,-842.5625,0.00018468,2]
[363357263,1748692249607,-229.3428821,0.00018468,2]
[363357264,1748692249616,-12664.98044988,0.00018468,2]
[363357265,1748692249626,-160.0,0.00018468,2]
[363357266,1748692249635,-160.0,0.00018468,2]
[363357267,1748692249645,-212.77096907,0.00018468,2]
[363357268,1748692249655,-4578.61881295,0.00018555,2]
[363357269,1748692249665,-151.0,0.000186,2]
[363357270,1748692249675,-430.0,0.0001863,2]
[363357271,1748692249685,-430.0,0.0001863,2]
[363357272,1748692249695,-593.18,0.0001863,2]
[363357273,1748692249704,-430.0,0.0001863,2]
[363357274,1748692249714,-430.0,0.0001863,2]
[363357275,1748692249724,-430.0,0.0001863,2]
[363357276,1748692249733,-668.47,0.0001863,2]
[363357277,1748692249743,-430.0,0.0001863,2]
[363357278,1748692249752,-166.15867229,0.0001863,2]
[363357279,1748692249761,-1813.53,0.0001863,2]
[363357280,1748692249771,-430.0,0.0001863,2]
[363357281,1748692249781,-430.0,0.0001863,2]
[363357282,1748692249790,-576.77,0.0001863,2]
[363357283,1748692249800,-430.0,0.0001863,2]
[363357284,1748692249810,-3524.6,0.0001863,2]
[363357285,1748692249819,-430.0,0.0001863,2]
[363357286,1748692249828,-430.0,0.0001863,2]
[363357287,1748692249839,-430.0,0.0001863,2]
[363357288,1748692249848,-430.0,0.0001863,2]
[363357289,1748692249857,-430.0,0.0001863,2]
[363357290,1748692249867,-1169.56,0.0001863,2]
[363357291,1748692249876,-3627.56,0.0001863,2]
[363357292,1748692249886,-2512.61,0.0001863,2]
[363357293,1748692249896,-430.0,0.0001863,2]
[363357294,1748692249905,-2938.95,0.0001863,2]
[363357295,1748692249915,-430.0,0.0001863,2]
[363357296,1748692249925,-586.28,0.0001863,2]
[363357297,1748692249935,-499.32,0.0001863,2]
[363357298,1748692249944,-430.0,0.0001863,2]
[363357299,1748692249954,-1692.57,0.0001863,2]
[363357300,1748692249964,-3129.24,0.0001863,2]
[363357301,1748692249974,-1575.39,0.0001863,2]
[363357302,1748692249984,-430.0,0.0001863,2]
[363357303,1748692249993,-471.27,0.0001863,2]
[363357304,1748692250003,-724.26,0.0001863,2]
[363357305,1748692250013,-614.59,0.0001863,2]
[363357306,1748692250023,-748.23,0.0001863,2]
[363357307,1748692250032,-835.01,0.0001863,2]
[363357308,1748692250042,-698.08,0.0001863,2]
[363357309,1748692250051,-430.0,0.0001863,2]
[363357310,1748692250061,-430.0,0.0001863,2]
[363357311,1748692250070,-633.51,0.0001863,2]
[363357312,1748692250079,-430.0,0.0001863,2]
[363357313,1748692250089,-430.0,0.0001863,2]
[363357314,1748692250098,-430.0,0.0001863,2]
[363357315,1748692250107,-430.0,0.0001863,2]
[363357316,1748692250117,-430.0,0.0001863,2]
[363357317,1748692250126,-430.0,0.0001863,2]
[363357318,1748692250135,-430.0,0.0001863,2]
[363357319,1748692250144,-430.0,0.0001863,2]
[363357320,1748692250154,-430.0,0.0001863,2]
[363357321,1748692250163,-430.0,0.0001863,2]
[363357322,1748692250172,-734.66,0.0001863,2]
[363357323,1748692250181,-430.0,0.0001863,2]
[363357324,1748692250191,-542.86,0.0001863,2]
[363357325,1748692250200,-430.0,0.0001863,2]
[363357326,1748692250210,-702.37,0.0001863,2]
[363357327,1748692250219,-430.0,0.0001863,2]
[363357328,1748692250229,-4229.34,0.0001863,2]
[363357329,1748692250238,-430.0,0.0001863,2]
[363357330,1748692250247,-449.81,0.0001863,2]
[363357331,1748692250257,-774.95,0.0001863,2]
[363357332,1748692250266,-89920.25416044,0.00018643,2]
[363357333,1748692250275,-500.0,0.00018817,2]
[363357334,1748692250284,-4578.61881295,0.00018831,2]
[363357335,1748692250294,-151.0,0.000189,2]
[363357336,1748692250303,-2669.08693054,0.000189,2]
[363357337,1748692250313,-430.0,0.00018904,2]
[363357338,1748692250322,-593.18,0.00018904,2]
[363357339,1748692250332,-430.0,0.00018904,2]
[363357340,1748692250341,-430.0,0.00018904,2]
[363357341,1748692250350,-668.47,0.00018904,2]
[363357342,1748692250360,-430.0,0.00018904,2]
[363357343,1748692250370,-1813.53,0.00018904,2]
[363357344,1748692250381,-455.14,0.00018904,2]
[363357345,1748692250391,-430.0,0.00018904,2]
[363357346,1748692250401,-576.77,0.00018904,2]
[363357347,1748692250410,-430.0,0.00018904,2]
[363357348,1748692250421,-3524.6,0.00018904,2]
[363357349,1748692250431,-430.0,0.00018904,2]
[363357350,1748692250440,-430.0,0.00018904,2]
[363357351,1748692250449,-430.0,0.00018904,2]
[363357352,1748692250459,-430.0,0.00018904,2]
[363357353,1748692250470,-430.0,0.00018904,2]
[363357354,1748692250480,-1169.56,0.00018904,2]
[363357355,1748692250489,-3627.56,0.00018904,2]
[363357356,1748692250499,-2512.61,0.00018904,2]
[363357357,1748692250508,-430.0,0.00018904,2]
[363357358,1748692250517,-2938.95,0.00018904,2]
[363357359,1748692250526,-255.9063081,0.00018904,2]
[363357360,1748692250536,-586.28,0.00018904,2]
[363357361,1748692250546,-499.32,0.00018904,2]
[363357362,1748692250555,-337.69396241,0.00018904,2]
[363357363,1748692250564,-1692.57,0.00018904,2]
[363357364,1748692250574,-3129.24,0.00018904,2]
[363357365,1748692250583,-1575.39,0.00018904,2]
[363357366,1748692250592,-430.0,0.00018904,2]
[363357367,1748692250602,-471.27,0.00018904,2]
[363357368,1748692250623,-724.26,0.00018904,2]
[363357369,1748692250633,-614.59,0.00018904,2]
[363357370,1748692250643,-748.23,0.00018904,2]
[363357371,1748692250653,-835.01,0.00018904,2]
[363357372,1748692250663,-698.08,0.00018904,2]
[363357373,1748692250673,-430.0,0.00018904,2]
[363357374,1748692250683,-430.0,0.00018904,2]
[363357375,1748692250693,-633.51,0.00018904,2]
[363357376,1748692250703,-430.0,0.00018904,2]
[363357377,1748692250713,-430.0,0.00018904,2]
[363357378,1748692250723,-430.0,0.00018904,2]
[363357379,1748692250732,-430.0,0.00018904,2]
[363357380,1748692250742,-430.0,0.00018904,2]
[363357381,1748692250752,-430.0,0.00018904,2]
[363357382,1748692250761,-430.0,0.00018904,2]
[363357383,1748692250771,-430.0,0.00018904,2]
[363357384,1748692250781,-430.0,0.00018904,2]
[363357385,1748692250791,-430.0,0.00018904,2]
[363357386,1748692250801,-734.66,0.00018904,2]
[363357387,1748692250810,-430.0,0.00018904,2]
[363357388,1748692250820,-542.86,0.00018904,2]
[363357389,1748692250830,-430.0,0.00018904,2]
[363357390,1748692250839,-702.37,0.00018904,2]
[363357391,1748692250850,-430.0,0.00018904,2]
[363357392,1748692250859,-4229.34,0.00018904,2]
[363357393,1748692250869,-430.0,0.00018904,2]
[363357394,1748692250879,-449.81,0.00018904,2]
[363357395,1748692250888,-774.95,0.00018904,2]
[363357396,1748692250898,-1200.0,0.00019064,2]
[363357397,1748692250909,-4578.61881295,0.00019107,2]
[363357398,1748692250919,-814.212827,0.00019178,2]
[363357399,1748692250928,-151.0,0.00019178,2]
[363357400,1748692250938,-475.777429,0.00019178,2]
[363357401,1748692250948,-475.777429,0.00019178,2]
[363357402,1748692250957,-430.0,0.00019178,2]
[363357403,1748692250967,-593.18,0.00019178,2]
[363357404,1748692250977,-430.0,0.00019178,2]
[363357405,1748692250986,-430.0,0.00019178,2]
[363357406,1748692250996,-668.47,0.00019178,2]
[363357407,1748692251006,-168.31747843,0.00019178,2]
[363357408,1748692251016,-1813.53,0.00019178,2]
[363357409,1748692251025,-430.0,0.00019178,2]
[363357410,1748692251035,-576.77,0.00019178,2]
[363357411,1748692251045,-3524.6,0.00019178,2]
[363357412,1748692251055,-430.0,0.00019178,2]
[363357413,1748692251064,-430.0,0.00019178,2]
[363357414,1748692251214,-430.0,0.00019178,2]
[363357415,1748692251224,-430.0,0.00019178,2]
[363357416,1748692251233,-430.0,0.00019178,2]
[363357417,1748692251242,-430.0,0.00019178,2]
[363357418,1748692251251,-321.37402994,0.00019178,2]
[363357419,1748692251260,-430.0,0.00019178,2]
[363357420,1748692251270,-1169.56,0.00019178,2]
[363357421,1748692251279,-3627.56,0.00019178,2]
[363357422,1748692251288,-2512.61,0.00019178,2]
[363357423,1748692251297,-430.0,0.00019178,2]
[363357424,1748692251307,-2938.95,0.00019178,2]
[363357425,1748692251316,-586.28,0.00019178,2]
[363357426,1748692251324,-499.32,0.00019178,2]
[363357427,1748692251333,-1692.57,0.00019178,2]
[363357428,1748692251342,-3129.24,0.00019178,2]
[363357429,1748692251352,-1575.39,0.00019178,2]
[363357430,1748692251361,-430.0,0.00019178,2]
[363357431,1748692251373,-471.27,0.00019178,2]
[363357432,1748692251382,-724.26,0.00019178,2]
[363357433,1748692251391,-614.59,0.00019178,2]
[363357434,1748692251400,-748.23,0.00019178,2]
[363357435,1748692251412,-835.01,0.00019178,2]
[363357436,1748692251420,-698.08,0.00019178,2]
[363357437,1748692251430,-430.0,0.00019178,2]
[363357438,1748692251439,-430.0,0.00019178,2]
[363357439,1748692251450,-633.51,0.00019178,2]
[363357440,1748692251459,-216.2380705,0.00019178,2]
[363357441,1748692251468,-417.86106119,0.00019178,2]
[363357442,1748692251477,-430.0,0.00019178,2]
[363357443,1748692251486,-430.0,0.00019178,2]
[363357444,1748692251496,-430.0,0.00019178,2]
[363357445,1748692251506,-430.0,0.00019178,2]
[363357446,1748692251515,-430.0,0.00019178,2]
[363357447,1748692251525,-430.0,0.00019178,2]
[363357448,1748692251535,-430.0,0.00019178,2]
[363357449,1748692251545,-734.66,0.00019178,2]
[363357450,1748692251554,-429.05555512,0.00019178,2]
[363357451,1748692251564,-542.86,0.00019178,2]
[363357452,1748692251573,-430.0,0.00019178,2]
[363357453,1748692251583,-702.37,0.00019178,2]
[363357454,1748692251592,-430.0,0.00019178,2]
[363357455,1748692251602,-4229.34,0.00019178,2]
[363357456,1748692251612,-430.0,0.00019178,2]
[363357457,1748692251625,-449.81,0.00019178,2]
[363357458,1748692251635,-774.95,0.00019178,2]
[363357459,1748692251645,-151.0,0.00019178,2]
[363357460,1748692251655,-463.480089,0.00019178,2]
[363357461,1748692251665,-156.587,0.00019233,2]
[363357462,1748692251675,-162.380719,0.00019288,2]
[363357463,1748692251685,-168.3888056,0.00019343,2]
[363357464,1748692251695,-1080.21674318,0.00019383,2]
[363357465,1748692251705,-4578.61881295,0.00019383,2]
[363357466,1748692251715,-174.61919141,0.00019398,2]
[363357467,1748692251725,-430.0,0.00019452,2]
[363357468,1748692251734,-593.18,0.00019452,2]
[363357469,1748692251744,-430.0,0.00019452,2]
[363357470,1748692251755,-430.0,0.00019452,2]
[363357471,1748692251765,-668.47,0.00019452,2]
[363357472,1748692251775,-1813.53,0.00019452,2]
[363357473,1748692251786,-430.0,0.00019452,2]
[363357474,1748692251795,-576.77,0.00019452,2]
[363357475,1748692251805,-3524.6,0.00019452,2]
[363357476,1748692251815,-551.99942704,0.00019452,2]
[363357477,1748692251825,-431.50025,0.00019452,2]
[363357478,1748692251835,-430.0,0.00019452,2]
[363357479,1748692251845,-430.0,0.00019452,2]
[363357480,1748692251854,-430.0,0.00019452,2]
[363357481,1748692251864,-1169.56,0.00019452,2]
[363357482,1748692251875,-3627.56,0.00019452,2]
[363357483,1748692251884,-2512.61,0.00019452,2]
[363357484,1748692251894,-430.0,0.00019452,2]